Workbook

Sheet 1нед
A1: Школа | B1: - | E1: Отд./корп | I1: День
A3: Прием пищи | B3: Раздел | C3: № рец. | D3: Блюдо | E3: Выход, г | F3: Цена | G3: Калорийность | H3: Белки | I3: Жиры | J3: Углеводы
A4: Завтрак | B4: гор.блюдо | C4: ТТК 2022 г | D4: Тефтели из говядины в соусе томатном | E4: 110 | G4: 132.00 | H4: 9.24 | I4: 6.83 | J4: 8.46
B5: гор блюдо | C5: №304/2015 | D5: Рис отварной | E5: 150 | G5: 224.00 | H5: 3.83 | I5: 5.43 | J5: 40.01
B6: гор.напиток | C6: ТТК 2021 г | D6: Чай с сахаром | E6: 208 | G6: 32.00 | H6: 0.02 | J6: 7.98
A7: понедельник | B7: хлеб | D7: Хлеб ржано-пшеничный | E7: 30 | G7: 66.00 | H7: 1.50 | I7: 0.30 | J7: 13.50
B8: закуска | C8: № 23/2015 г | D8: Салат из свежих помидоров | E8: 60 | G8: 48.00 | H8: 0.67 | I8: 3.71 | J8: 2.77
B9: печенье | C9: Акт 2019 | D9: Печенье | E9: 15 | G9: 79.00 | H9: 1.21 | I9: 2.62 | J9: 10.25
A11: ИТОГО | E11: =E4+E5+E6+E7+E8+E9 -> 573 | F11: 62.10 | G11: =G4+G5+G6+G7+G8+G9 -> 581.00 | H11: =H4+H5+H6+H7+H8+H9 -> 16.47 | I11: =I4+I5+I6+I7+I8+I9 -> 18.89 | J11: =J4+J5+J6+J7+J8+J9 -> 82.97
A12: Завтрак | B12: гор.блюдо | C12: ТТК 2021 г | D12: Рагу из птицы | E12: 160 | G12: 332.00 | H12: 12.63 | I12: 15.18 | J12: 36.16
B13: гор.напиток | C13: №699/2004 | D13: Напиток лимонный | E13: 200 | G13: 83.00 | H13: 0.10 | I13: 0.10 | J13: 20.40
B14: хлеб | D14: Хлеб ржано-пшеничный | E14: 20 | G14: 44.00 | H14: 1.00 | I14: 0.20 | J14: 9.00
B15: хлеб | D15: Хлеб пшеничный | E15: 15 | G15: 35.00 | H15: 1.14 | I15: 0.12 | J15: 7.38
B16: закуска | C16: № 71/2015 г | D16: Овощи натуральные свежие (огурцы) | E16: 60 | G16: 7.00 | H16: 0.42 | I16: 0.06 | J16: 1.14
B17: фрукт | C17: № 338/2015г | D17: Плоды свежие (яблоки) | E17: 120 | G17: 56.00 | H17: 0.48 | I17: 0.48 | J17: 11.76
A18: ИТОГО | E18: =E12+E13+E14+E15+E16+E17 -> 575 | F18: 62.10 | G18: =G12+G13+G14+G15+G16+G17 -> 557.00 | H18: =H12+H13+H14+H15+H16+H17 -> 15.77 | I18: 16.14 | J18: 85.84
A19: Завтрак | B19: гор.блюдо | C19: ТТК 2022 г | D19: Котлеты "Аппетитные" мясо-куриные с соусом томатным | E19: 90 | G19: 128 | H19: 8.10 | I19: 10.8 | J19: 0.20
B20: гор.блюдо | C20: №202/2015 | D20: Макаронные изделия отварные | E20: 150 | G20: 212 | H20: 5.60 | I20: 5.06 | J20: 35.91
B21: гор.блюдо | C21: Акт 2018 | D21: Блинчики со сгущенным молоком | E21: 55 | G21: 79 | H21: 2.19 | I21: 2.52 | J21: 12.50
B22: гор.напиток | C22: ТТК 2022 г | D22: Компот из замороженного крыжовника | E22: 200 | G22: 71 | H22: 0.17 | I22: 0.00 | J22: 17.44
B23: хлеб | D23: Хлеб ржано-пшеничный | E23: 20 | G23: 44.00 | H23: 1.00 | I23: 0.20 | J23: 9.00
A24: среда | B24: хлеб | D24: Хлеб пшеничный | E24: 15 | G24: 35.00 | H24: 1.14 | I24: 0.12 | J24: 7.38
B25: закуска | C25: ТТК | D25: Салат из моркови | E25: 60 | G25: 17 | H25: 0.33 | I25: 1.10 | J25: 1.34
A26: ИТОГО | E26: =E19+E20+E21+E22+E23+E24+E25 -> 590 | F26: 62.10 | G26: =G19+G20+G21+G22+G23+G24+G25 -> 586.00 | H26: =H19+H20+H21+H22+H23+H24+H25 -> 18.53 | I26: =I19+I20+I21+I22+I23+I24+I25 -> 19.80 | J26: =J19+J20+J21+J22+J23+J24+J25 -> 83.77
A27: Завтрак | B27: гор.блюдо | C27: ТТК 2021 г | D27: Плов с курицей | E27: 200 | G27: 244.00 | H27: 12.42 | I27: 10.01 | J27: 26.01
B28: гор.напиток | C28: ТТК 2021 г | D28: Компот из замороженной вишни | E28: 200 | G28: 48.00 | H28: 0.12 | I28: 0.03 | J28: 11.57
B29: хлеб | D29: Хлеб ржано-пшеничный | E29: 25 | G29: 55.00 | H29: 1.25 | I29: 0.25 | J29: 11.25
A30: четверг | B30: закуска | C30: № 55/Саратов | D30: Салат "Витаминный" | E30: 60 | G30: 67.00 | H30: 0.79 | I30: 4.1 | J30: 6.71
B31: фрукты | C31: №338/2015 | D31: Плоды свежие (яблоки) | E31: 120 | G31: 56.00 | H31: 0.48 | I31: 0.48 | J31: 11.76
B32: печенье | C32: Акт 2019 | D32: Печенье | E32: 15 | G32: 78.00 | H32: 1.21 | I32: 3.62 | J32: 10.25
A33: ИТОГО | E33: =E27+E28+E29+E30+E31+E32 -> 620 | F33: 62.10 | G33: =G27+G28+G29+G30+G31+G32 -> 548.00 | H33: =H27+H28+H29+H30+H31+H32 -> 16.27 | I33: 18.49 | J33: 77.55
A34: Завтрак | B34: гор.блюдо | C34: №250/2015 | D34: Жаркое по домашнему | E34: 190 | G34: 315 | H34: 12.53 | I34: 12.78 | J34: 37.5
B35: гор.напиток | C35: ТТК 2021г | D35: Чай с сахаром, лимоном | E35: 215 | G35: 35 | H35: 0.11 | I35: 0.01 | J35: 8.29
B36: хлеб | D36: Хлеб ржано-пшеничный | E36: 20 | G36: 44.00 | H36: 1.00 | I36: 0.20 | J36: 9.00
B37: хлеб | D37: Хлеб пшеничный | E37: 15 | G37: 35.00 | H37: 1.14 | I37: 0.12 | J37: 7.38
A38: Пятница | B38: закуска | C38: №52/2015 | D38: Салат из свкеклы отварной с маслом | E38: 60 | G38: 56 | H38: 0.85 | I38: 3.65 | J38: 5.02
A39: ИТОГО | E39: =E34+E35+E36+E37+E38 -> 500 | F39: 62.10 | G39: =G34+G35+G36+G37+G38 -> 485 | H39: =H34+H35+H36+H37+H38 -> 15.63 | I39: 16.76 | J39: 67.19
A40: Завтрак | B40: гор.блюдо | C40: Акт 2020г | D40: Пельмени "Для Умников и умниц" отварные с маслом | E40: 155 | G40: 329 | H40: 14.84 | I40: 15.51 | J40: 31.45
B41: гор.напиток | C41: ТТК 2021 г | D41: Компот из замороженной компотной смеси | E41: 200 | G41: 46 | H41: 0.13 | I41: 0.02 | J41: 11.15
B42: хлеб | D42: Хлеб ржано-пшеничный | E42: 20 | G42: 44.00 | H42: 1.00 | I42: 0.20 | J42: 9.00
B43: хлеб | D43: Хлеб пшеничный | E43: 15 | G43: 35.00 | H43: 1.14 | I43: 0.12 | J43: 7.38
B44: печенье | C44: Акт 2019 | D44: Печенье | E44: 15 | G44: 66.00 | H44: 0.96 | I44: 2.44 | J44: 10.01
B45: фрукты | C45: №338/2015 | D45: Плоды свежие (яблоки) | E45: 120 | G45: 56.00 | H45: 0.48 | I45: 0.48 | J45: 11.76
A46: ИТОГО | E46: =E40+E41+E42+E43+E44+E45 -> 525 | G46: =G40+G41+G42+G43+G44+G45 -> 576 | H46: =H40+H41+H42+H43+H44+H45 -> 18.55 | I46: 18.77 | J46: 80.75
